[Event "*** Titled Tuesday Blitz"]
[Site "Chess.com"]
[Date "2020.11.24"]
[Round "8"]
[White "DenishevM"]
[Black "Eliwood44"]
[Result "1-0"]
[WhiteElo "2598"]
[BlackElo "2472"]
[TimeControl "180+1"]
[EndTime "11:47:44 PST"]
[Termination "DenishevM won by resignation"]

1. b3 {[%clk 0:02:59.2]} 1... d5 {[%clk 0:02:57.3]} 2. Bb2 {[%clk 0:03:00.1]}
2... Bf5 {[%clk 0:02:54.9]} 3. Nf3 {[%clk 0:02:59.7]} 3... e6 {[%clk 0:02:53.6]}
4. g3 {[%clk 0:03:00.3]} 4... Nf6 {[%clk 0:02:53.9]} 5. Bg2 {[%clk 0:03:01.1]}
5... h6 {[%clk 0:02:54.4]} 6. O-O {[%clk 0:03:01.2]} 6... c5 {[%clk 0:02:53.5]}
7. d3 {[%clk 0:03:01.9]} 7... Be7 {[%clk 0:02:52.8]} 8. Nbd2 {[%clk 0:03:01.7]}
8... O-O {[%clk 0:02:52.1]} 9. Ne5 {[%clk 0:03:02.4]} 9... Nbd7 {[%clk
0:02:50.6]} 10. e4 {[%clk 0:03:02.9]} 10... Bh7 {[%clk 0:02:49.6]} 11. Qe2
{[%clk 0:03:02.8]} 11... Nxe5 {[%clk 0:02:39.6]} 12. Bxe5 {[%clk 0:03:03.6]}
12... Nd7 {[%clk 0:02:39.2]} 13. Bb2 {[%clk 0:03:03.2]} 13... Bf6 {[%clk
0:02:34.5]} 14. e5 {[%clk 0:03:03.3]} 14... Be7 {[%clk 0:02:34]} 15. f4 {[%clk
0:03:04.1]} 15... Rc8 {[%clk 0:02:29.5]} 16. c4 {[%clk 0:03:02]} 16... Nb8
{[%clk 0:02:23]} 17. cxd5 {[%clk 0:02:52.3]} 17... exd5 {[%clk 0:02:18.3]} 18.
f5 {[%clk 0:02:52.7]} 18... Re8 {[%clk 0:02:17.4]} 19. Qg4 {[%clk 0:02:44]}
19... f6 {[%clk 0:02:11]} 20. Rae1 {[%clk 0:02:18]} 20... Rf8 {[%clk 0:01:56]}
21. Qf3 {[%clk 0:01:46.1]} 21... d4 {[%clk 0:01:53.2]} 22. Qxb7 {[%clk
0:01:38.7]} 22... fxe5 {[%clk 0:01:52.9]} 23. Rxe5 {[%clk 0:01:19.8]} 23... Bd6
{[%clk 0:01:45.7]} 24. Ree1 {[%clk 0:01:08.8]} 24... Rc7 {[%clk 0:01:39.8]} 25.
Qd5+ {[%clk 0:01:07.2]} 25... Kh8 {[%clk 0:01:39.3]} 26. Ne4 {[%clk 0:01:04.9]}
26... Be7 {[%clk 0:01:29.4]} 27. Qxd8 {[%clk 0:01:01.5]} 27... Rxd8 {[%clk
0:01:29.1]} 28. Bc1 {[%clk 0:00:51.4]} 28... Na6 {[%clk 0:01:22.6]} 29. f6
{[%clk 0:00:27.8]} 29... gxf6 {[%clk 0:01:09.8]} 30. Nxf6 {[%clk 0:00:28.7]}
30... Bxd3 {[%clk 0:01:08]} 31. Rf4 {[%clk 0:00:20.3]} 31... Bf8 {[%clk
0:00:39.6]} 32. Rh4 {[%clk 0:00:16.9]} 32... Bg6 {[%clk 0:00:34.5]} 33. Ng4
{[%clk 0:00:13]} 33... d3 {[%clk 0:00:30.6]} 34. Bd2 {[%clk 0:00:07.5]} 34... h5
{[%clk 0:00:24.2]} 35. Ne5 {[%clk 0:00:07]} 35... Be8 {[%clk 0:00:20]} 36. Bf3
{[%clk 0:00:07.3]} 36... Be7 {[%clk 0:00:18.4]} 37. Rh3 {[%clk 0:00:05.4]} 37...
Bf6 {[%clk 0:00:16]} 38. Bxh5 {[%clk 0:00:05.4]} 38... Rh7 {[%clk 0:00:14.8]}
39. g4 {[%clk 0:00:03.1]} 39... Bxe5 {[%clk 0:00:13.4]} 40. Rxe5 {[%clk
0:00:03]} 40... Bxh5 {[%clk 0:00:13.7]} 41. Rexh5 {[%clk 0:00:03.4]} 41... Rxh5
{[%clk 0:00:13.9]} 42. Rxh5+ {[%clk 0:00:04.2]} 42... Kg7 {[%clk 0:00:14.4]} 43.
Kf2 {[%clk 0:00:04.1]} 43... Nb4 {[%clk 0:00:14]} 44. Rxc5 {[%clk 0:00:03.4]}
44... Nxa2 {[%clk 0:00:13.8]} 45. Rc7+ {[%clk 0:00:03.7]} 45... Kg6 {[%clk
0:00:13.6]} 46. Rxa7 {[%clk 0:00:04.2]} 46... Nb4 {[%clk 0:00:13.9]} 47. Bxb4
{[%clk 0:00:04.6]} 47... d2 {[%clk 0:00:14.3]} 48. Bxd2 {[%clk 0:00:05.1]} 48...
Rxd2+ {[%clk 0:00:15.2]} 49. Kg3 {[%clk 0:00:04]} 49... Rd3+ {[%clk 0:00:14.9]}
50. Kh4 {[%clk 0:00:04.6]} 50... Rxb3 {[%clk 0:00:15.8]} 51. Ra6+ {[%clk
0:00:04.9]} 51... Kg7 {[%clk 0:00:16.4]} 52. Kh5 {[%clk 0:00:05.3]} 52... Rb2
{[%clk 0:00:17.3]} 53. h4 {[%clk 0:00:05.5]} 53... Rb5+ {[%clk 0:00:17.5]} 54.
g5 {[%clk 0:00:06.2]} 54... Rb4 {[%clk 0:00:18.3]} 55. Ra7+ {[%clk 0:00:06.5]}
55... Kg8 {[%clk 0:00:18.6]} 56. Kg6 {[%clk 0:00:06.2]} 56... Rb6+ {[%clk
0:00:18.6]} 57. Kf5 {[%clk 0:00:06.4]} 57... Rb4 {[%clk 0:00:17.6]} 58. h5
{[%clk 0:00:06.2]} 58... Rb5+ {[%clk 0:00:18]} 59. Kf4 {[%clk 0:00:06.4]} 59...
Rb4+ {[%clk 0:00:18.5]} 60. Ke3 {[%clk 0:00:06.6]} 60... Rb3+ {[%clk 0:00:18.7]}
61. Kd4 {[%clk 0:00:06.1]} 61... Rh3 {[%clk 0:00:18.4]} 62. h6 {[%clk
0:00:05.3]} 62... Rg3 {[%clk 0:00:17.9]} 63. Ra5 {[%clk 0:00:05.5]} 63... Rg1
{[%clk 0:00:15.8]} 64. Ke4 {[%clk 0:00:05.4]} 64... Rf1 {[%clk 0:00:16]} 65. Ra7
{[%clk 0:00:04]} 65... Rf2 {[%clk 0:00:14.6]} 66. g6 {[%clk 0:00:03.7]} 66...
Rf1 {[%clk 0:00:12.3]} 67. Ra8+ {[%clk 0:00:03.6]} 67... Rf8 {[%clk 0:00:11.9]}
68. h7+ {[%clk 0:00:03.7]} 68... Kg7 {[%clk 0:00:10.8]} 69. Rxf8 {[%clk
0:00:04.5]} 69... Kxg6 {[%clk 0:00:10]} 70. h8=Q {[%clk 0:00:04.9]} 70... Kg5
{[%clk 0:00:10.5]} 1-0

[Event "*** Titled Tuesday Blitz"]
[Site "Chess.com"]
[Date "2020.11.24"]
[Round "8"]
[White "AryanTari"]
[Black "Aleksey_Sorokin"]
[Result "1/2-1/2"]
[WhiteElo "2904"]
[BlackElo "2826"]
[TimeControl "180+1"]
[EndTime "11:47:49 PST"]
[Termination "Game drawn by repetition"]

1. e4 {[%clk 0:02:58.2]} 1... c6 {[%clk 0:02:59.7]} 2. Nc3 {[%clk 0:02:54.2]}
2... d5 {[%clk 0:03:00.6]} 3. Nf3 {[%clk 0:02:54.6]} 3... dxe4 {[%clk
0:02:58.1]} 4. Nxe4 {[%clk 0:02:55.2]} 4... Nf6 {[%clk 0:02:58.8]} 5. Qe2 {[%clk
0:02:55]} 5... Nxe4 {[%clk 0:02:58.4]} 6. Qxe4 {[%clk 0:02:55.1]} 6... Qd5
{[%clk 0:02:59.3]} 7. Qf4 {[%clk 0:02:53.8]} 7... Qf5 {[%clk 0:02:58.9]} 8. Qe3
{[%clk 0:02:53.8]} 8... Qe6 {[%clk 0:02:59]} 9. b3 {[%clk 0:02:51.2]} 9... Qxe3+
{[%clk 0:02:58.7]} 10. fxe3 {[%clk 0:02:52.1]} 10... Bg4 {[%clk 0:02:58.2]} 11.
Bb2 {[%clk 0:02:47.9]} 11... Nd7 {[%clk 0:02:58.2]} 12. O-O-O {[%clk 0:02:10]}
12... e6 {[%clk 0:02:58.2]} 13. h3 {[%clk 0:02:07.4]} 13... Bh5 {[%clk 0:02:56]}
14. g4 {[%clk 0:02:03]} 14... Bg6 {[%clk 0:02:55.9]} 15. Be2 {[%clk 0:02:03]}
15... f6 {[%clk 0:02:52.7]} 16. d3 {[%clk 0:02:01.4]} 16... h6 {[%clk
0:02:49.8]} 17. e4 {[%clk 0:01:58.6]} 17... e5 {[%clk 0:02:43.4]} 18. Nh4 {[%clk
0:01:57]} 18... Bh7 {[%clk 0:02:43.1]} 19. Nf5 {[%clk 0:01:54.1]} 19... Bxf5
{[%clk 0:02:34.3]} 20. gxf5 {[%clk 0:01:52.6]} 20... c5 {[%clk 0:02:27.2]} 21.
Bh5+ {[%clk 0:01:49.8]} 21... Kd8 {[%clk 0:02:21]} 22. Rhg1 {[%clk 0:01:50.7]}
22... Nb8 {[%clk 0:02:17.2]} 23. Rg2 {[%clk 0:01:45.2]} 23... Nc6 {[%clk
0:02:08.7]} 24. a4 {[%clk 0:01:45.3]} 24... Kc7 {[%clk 0:02:07.6]} 25. h4 {[%clk
0:01:37.5]} 25... Rd8 {[%clk 0:02:06.4]} 26. Bc3 {[%clk 0:01:32.4]} 26... Nd4
{[%clk 0:02:03.4]} 27. Kb2 {[%clk 0:01:26.7]} 27... Rd7 {[%clk 0:02:02.6]} 28.
Rdg1 {[%clk 0:01:23.3]} 28... b6 {[%clk 0:01:57.8]} 29. Be8 {[%clk 0:01:20.8]}
29... Re7 {[%clk 0:01:55.2]} 30. Bb5 {[%clk 0:01:18.5]} 30... Nxb5 {[%clk
0:01:54]} 31. axb5 {[%clk 0:01:19.4]} 31... Rd7 {[%clk 0:01:51.2]} 32. Ra1
{[%clk 0:01:16.8]} 32... Kb8 {[%clk 0:01:49.4]} 33. h5 {[%clk 0:01:14]} 33...
Bd6 {[%clk 0:01:43.8]} 34. Ra6 {[%clk 0:01:13.6]} 34... Kb7 {[%clk 0:01:37]} 35.
Kc1 {[%clk 0:01:10.7]} 35... Rc8 {[%clk 0:01:32.9]} 36. Kd2 {[%clk 0:01:08.3]}
36... Rcc7 {[%clk 0:01:27.6]} 37. Rg1 {[%clk 0:01:06.2]} 37... Bf8 {[%clk
0:01:27.4]} 38. Rga1 {[%clk 0:01:02.3]} 38... Kb8 {[%clk 0:01:27.5]} 39. Ke3
{[%clk 0:00:58.1]} 39... Rc8 {[%clk 0:01:26.8]} 40. R6a4 {[%clk 0:00:55.1]}
40... Rdc7 {[%clk 0:01:26.3]} 41. Kd2 {[%clk 0:00:52.8]} 41... Be7 {[%clk
0:01:24.5]} 42. R1a2 {[%clk 0:00:51.7]} 42... Bf8 {[%clk 0:01:24.7]} 43. b4
{[%clk 0:00:44.1]} 43... cxb4 {[%clk 0:01:08.4]} 44. Bxb4 {[%clk 0:00:43.9]}
44... Bxb4+ {[%clk 0:01:09.3]} 45. Rxb4 {[%clk 0:00:44.8]} 45... Rd7 {[%clk
0:01:05.1]} 46. Rba4 {[%clk 0:00:44.3]} 46... Rc5 {[%clk 0:01:04.6]} 47. Rb2
{[%clk 0:00:43]} 47... Kb7 {[%clk 0:01:03.6]} 48. c3 {[%clk 0:00:42.9]} 48...
Kb8 {[%clk 0:00:59.8]} 49. Ra3 {[%clk 0:00:43.1]} 49... Kb7 {[%clk 0:00:57.7]}
50. Ke3 {[%clk 0:00:43.6]} 50... Kb8 {[%clk 0:00:49.3]} 51. Rb4 {[%clk
0:00:43.4]} 51... Rdc7 {[%clk 0:00:43.2]} 52. Kd2 {[%clk 0:00:41.6]} 52... Rd7
{[%clk 0:00:43.3]} 53. Rab3 {[%clk 0:00:42.2]} 53... Rdc7 {[%clk 0:00:40.5]} 54.
d4 {[%clk 0:00:38.4]} 54... exd4 {[%clk 0:00:40.3]} 55. Rxd4 {[%clk 0:00:39.3]}
55... Re7 {[%clk 0:00:38]} 56. Kd3 {[%clk 0:00:38.2]} 56... Kb7 {[%clk
0:00:37.7]} 57. Rb1 {[%clk 0:00:35.2]} 57... Rec7 {[%clk 0:00:35.8]} 58. c4
{[%clk 0:00:34.7]} 58... Kc8 {[%clk 0:00:35.5]} 59. Rg1 {[%clk 0:00:33.3]} 59...
Re5 {[%clk 0:00:35.2]} 60. Rd5 {[%clk 0:00:32.6]} 60... Ree7 {[%clk 0:00:35]}
61. Kd4 {[%clk 0:00:31.7]} 61... Kb7 {[%clk 0:00:34.5]} 62. Re1 {[%clk
0:00:29.9]} 62... a5 {[%clk 0:00:33.1]} 63. bxa6+ {[%clk 0:00:28.9]} 63... Kxa6
{[%clk 0:00:34]} 64. Rb1 {[%clk 0:00:27.5]} 64... Rc6 {[%clk 0:00:31.1]} 65. Rb4
{[%clk 0:00:18.1]} 65... Kb7 {[%clk 0:00:28.6]} 66. c5 {[%clk 0:00:18.3]} 66...
Kc7 {[%clk 0:00:27.1]} 67. cxb6+ {[%clk 0:00:13.1]} 67... Rxb6 {[%clk 0:00:28]}
68. Rxb6 {[%clk 0:00:12.8]} 68... Kxb6 {[%clk 0:00:28.9]} 69. e5 {[%clk
0:00:13.4]} 69... fxe5+ {[%clk 0:00:26.2]} 70. Rxe5 {[%clk 0:00:14.3]} 70...
Rd7+ {[%clk 0:00:15.1]} 71. Rd5 {[%clk 0:00:14.6]} 71... Kc6 {[%clk 0:00:13.5]}
72. Rxd7 {[%clk 0:00:11.2]} 72... Kxd7 {[%clk 0:00:14.4]} 73. Kd5 {[%clk
0:00:09.1]} 73... Ke7 {[%clk 0:00:13.3]} 74. Ke5 {[%clk 0:00:09.7]} 74... Kf7
{[%clk 0:00:13.6]} 75. Ke4 {[%clk 0:00:07.1]} 75... Ke7 {[%clk 0:00:13.1]} 76.
Ke5 {[%clk 0:00:07.4]} 76... Kf7 {[%clk 0:00:13.4]} 77. Ke4 {[%clk 0:00:08.1]}
77... Kf6 {[%clk 0:00:13.7]} 78. Kf4 {[%clk 0:00:08.5]} 78... Kf7 {[%clk
0:00:13.8]} 79. Ke5 {[%clk 0:00:08]} 79... Ke7 {[%clk 0:00:14.1]} 80. Ke4 {[%clk
0:00:08.6]} 80... Kd6 {[%clk 0:00:12.8]} 81. Kd4 {[%clk 0:00:05.9]} 81... Ke7
{[%clk 0:00:12.5]} 82. Ke5 {[%clk 0:00:06.4]} 1/2-1/2

[Event "*** Titled Tuesday Blitz"]
[Site "Chess.com"]
[Date "2020.11.24"]
[Round "8"]
[White "klimkoj"]
[Black "maxip32"]
[Result "0-1"]
[WhiteElo "2613"]
[BlackElo "2501"]
[TimeControl "180+1"]
[EndTime "11:48:07 PST"]
[Termination "maxip32 won on time"]

1. e4 {[%clk 0:03:00.9]} 1... e5 {[%clk 0:02:59.8]} 2. Nf3 {[%clk 0:03:00.6]}
2... Nf6 {[%clk 0:03:00.1]} 3. Nxe5 {[%clk 0:02:58.5]} 3... d6 {[%clk
0:03:00.1]} 4. Nf3 {[%clk 0:02:58.5]} 4... Nxe4 {[%clk 0:02:59.9]} 5. d4 {[%clk
0:02:58]} 5... d5 {[%clk 0:02:53.6]} 6. Bd3 {[%clk 0:02:57.5]} 6... Be7 {[%clk
0:02:50.8]} 7. c4 {[%clk 0:02:57.6]} 7... c6 {[%clk 0:02:50.2]} 8. Nc3 {[%clk
0:02:57.3]} 8... Nxc3 {[%clk 0:02:49.7]} 9. bxc3 {[%clk 0:02:58.2]} 9... dxc4
{[%clk 0:02:48.2]} 10. Bxc4 {[%clk 0:02:57.9]} 10... O-O {[%clk 0:02:48.3]} 11.
h3 {[%clk 0:02:50.4]} 11... Nd7 {[%clk 0:02:47.1]} 12. O-O {[%clk 0:02:50]}
12... Nb6 {[%clk 0:02:43]} 13. Bb3 {[%clk 0:02:46.5]} 13... Qd6 {[%clk
0:02:41.3]} 14. Ne5 {[%clk 0:02:44.4]} 14... Be6 {[%clk 0:02:39.2]} 15. Bf4
{[%clk 0:02:42.7]} 15... Bxb3 {[%clk 0:02:35.8]} 16. axb3 {[%clk 0:02:41.5]}
16... Nd5 {[%clk 0:02:23.8]} 17. Bd2 {[%clk 0:02:40.7]} 17... Bf6 {[%clk
0:02:20.5]} 18. Re1 {[%clk 0:02:30.3]} 18... Rfe8 {[%clk 0:02:18.6]} 19. c4
{[%clk 0:02:17.8]} 19... Nc7 {[%clk 0:02:14.6]} 20. Bc3 {[%clk 0:02:11.4]} 20...
Ne6 {[%clk 0:02:06.1]} 21. Qd2 {[%clk 0:01:59.2]} 21... Rad8 {[%clk 0:01:21.6]}
22. Rad1 {[%clk 0:01:37.8]} 22... Bg5 {[%clk 0:01:07.9]} 23. Qe2 {[%clk
0:01:22.5]} 23... Bf6 {[%clk 0:01:04.2]} 24. Qe4 {[%clk 0:01:02.2]} 24... h6
{[%clk 0:01:02]} 25. g3 {[%clk 0:00:58.1]} 25... Ng5 {[%clk 0:00:58.5]} 26. Qg4
{[%clk 0:00:52.3]} 26... Qa3 {[%clk 0:00:45.6]} 27. h4 {[%clk 0:00:49.7]} 27...
Ne6 {[%clk 0:00:45]} 28. Rb1 {[%clk 0:00:42.3]} 28... Qd6 {[%clk 0:00:29.5]} 29.
Qh5 {[%clk 0:00:37]} 29... Bxe5 {[%clk 0:00:27.5]} 30. Qxe5 {[%clk 0:00:28.4]}
30... Qxe5 {[%clk 0:00:27.4]} 31. Rxe5 {[%clk 0:00:29]} 31... f6 {[%clk
0:00:25.9]} 32. Re4 {[%clk 0:00:26.3]} 32... Kf7 {[%clk 0:00:26.1]} 33. Rbe1
{[%clk 0:00:19]} 33... g5 {[%clk 0:00:25.4]} 34. hxg5 {[%clk 0:00:18.3]} 34...
hxg5 {[%clk 0:00:26.3]} 35. Kg2 {[%clk 0:00:17.8]} 35... Rd7 {[%clk 0:00:26]}
36. Kf3 {[%clk 0:00:16.7]} 36... Nc7 {[%clk 0:00:25]} 37. Rxe8 {[%clk
0:00:16.2]} 37... Nxe8 {[%clk 0:00:25.9]} 38. g4 {[%clk 0:00:15.4]} 38... Nc7
{[%clk 0:00:25.7]} 39. Bb4 {[%clk 0:00:14.3]} 39... Ne6 {[%clk 0:00:25]} 40. Bc3
{[%clk 0:00:11.1]} 40... Nxd4+ {[%clk 0:00:24.8]} 41. Ke4 {[%clk 0:00:09.8]}
41... Ne6 {[%clk 0:00:22.7]} 42. Kf5 {[%clk 0:00:07.3]} 42... Ng7+ {[%clk
0:00:22.2]} 43. Ke4 {[%clk 0:00:07.6]} 43... Re7+ {[%clk 0:00:22.8]} 44. Kf3
{[%clk 0:00:08]} 44... Rxe1 {[%clk 0:00:23.7]} 45. Bxe1 {[%clk 0:00:08.9]} 45...
Ke6 {[%clk 0:00:23]} 46. Ke4 {[%clk 0:00:08.4]} 46... Ne8 {[%clk 0:00:23]} 47.
Bc3 {[%clk 0:00:07.5]} 47... Nd6+ {[%clk 0:00:22.9]} 48. Kd4 {[%clk 0:00:07.8]}
48... f5 {[%clk 0:00:23.3]} 49. gxf5+ {[%clk 0:00:08.3]} 49... Nxf5+ {[%clk
0:00:24.2]} 50. Ke4 {[%clk 0:00:08.2]} 50... Nd6+ {[%clk 0:00:19.9]} 51. Kd4
{[%clk 0:00:08.6]} 51... b6 {[%clk 0:00:19.8]} 52. Bd2 {[%clk 0:00:07.3]} 52...
c5+ {[%clk 0:00:19]} 53. Ke3 {[%clk 0:00:06]} 53... Kf5 {[%clk 0:00:19.2]} 54.
f3 {[%clk 0:00:06.5]} 54... Nf7 {[%clk 0:00:19]} 55. Be1 {[%clk 0:00:06.8]}
55... Ne5 {[%clk 0:00:18.6]} 56. Bg3 {[%clk 0:00:06.8]} 56... a6 {[%clk
0:00:19]} 57. Be1 {[%clk 0:00:05.3]} 57... b5 {[%clk 0:00:19]} 58. cxb5 {[%clk
0:00:05]} 58... axb5 {[%clk 0:00:19.9]} 59. Bc3 {[%clk 0:00:04.9]} 59... Nc6
{[%clk 0:00:19.2]} 60. Bg7 {[%clk 0:00:04]} 60... Ne5 {[%clk 0:00:18.6]} 61. Bf8
{[%clk 0:00:03.6]} 61... Nd7 {[%clk 0:00:18.8]} 62. Bd6 {[%clk 0:00:03.1]} 62...
Ke6 {[%clk 0:00:18]} 63. Bg3 {[%clk 0:00:03.1]} 63... Kd5 {[%clk 0:00:18.2]} 64.
Be1 {[%clk 0:00:03.1]} 64... Ne5 {[%clk 0:00:14.7]} 65. Bc3 {[%clk 0:00:03.1]}
65... Nd7 {[%clk 0:00:12.7]} 66. Bd2 {[%clk 0:00:02.5]} 66... Ne5 {[%clk
0:00:08]} 67. Bc3 {[%clk 0:00:02.5]} 67... Nf7 {[%clk 0:00:08.1]} 68. Bd2 {[%clk
0:00:02.4]} 68... c4 {[%clk 0:00:08.4]} 69. bxc4+ {[%clk 0:00:02.4]} 69... Kxc4
{[%clk 0:00:09.3]} 70. f4 {[%clk 0:00:02.4]} 70... gxf4+ {[%clk 0:00:06]} 71.
Kxf4 {[%clk 0:00:03.3]} 71... Nd6 {[%clk 0:00:06.2]} 72. Ke3 {[%clk 0:00:04.2]}
72... Nb7 {[%clk 0:00:05.7]} 73. Ke4 {[%clk 0:00:03.5]} 73... Nc5+ {[%clk
0:00:05]} 74. Ke3 {[%clk 0:00:03.7]} 74... Na4 {[%clk 0:00:05.2]} 75. Ke2 {[%clk
0:00:03.1]} 75... Nc3+ {[%clk 0:00:05.4]} 76. Ke3 {[%clk 0:00:03]} 76... b4
{[%clk 0:00:05.5]} 77. Bc1 {[%clk 0:00:03.4]} 77... Na2 {[%clk 0:00:05]} 78. Bb2
{[%clk 0:00:03.3]} 78... Kb3 {[%clk 0:00:05]} 79. Be5 {[%clk 0:00:03.4]} 79...
Kc2 {[%clk 0:00:05.2]} 80. Bd6 {[%clk 0:00:02.7]} 80... b3 {[%clk 0:00:05.2]}
81. Ba3 {[%clk 0:00:03.1]} 81... Nc3 {[%clk 0:00:05.4]} 0-1

[Event "*** Titled Tuesday Blitz"]
[Site "Chess.com"]
[Date "2020.11.24"]
[Round "8"]
[White "canary2016"]
[Black "tylityli"]
[Result "1-0"]
[WhiteElo "2004"]
[BlackElo "2319"]
[TimeControl "180+1"]
[EndTime "11:48:07 PST"]
[Termination "canary2016 won on time"]

1. Nf3 {[%clk 0:03:00.9]} 1... Nf6 {[%clk 0:02:58]} 2. g3 {[%clk 0:03:00.1]}
2... d5 {[%clk 0:02:55.3]} 3. Bg2 {[%clk 0:02:58.6]} 3... b5 {[%clk 0:02:54.6]}
4. O-O {[%clk 0:02:57.8]} 4... e6 {[%clk 0:02:54.2]} 5. d4 {[%clk 0:02:57.5]}
5... c5 {[%clk 0:02:53.1]} 6. c3 {[%clk 0:02:56.7]} 6... Bb7 {[%clk 0:02:52.8]}
7. Bf4 {[%clk 0:02:52.9]} 7... Nbd7 {[%clk 0:02:51.9]} 8. a4 {[%clk 0:02:46.3]}
8... a6 {[%clk 0:02:51]} 9. Nbd2 {[%clk 0:02:43.4]} 9... Qb6 {[%clk 0:02:45.7]}
10. e3 {[%clk 0:02:14.7]} 10... Nh5 {[%clk 0:02:37.7]} 11. axb5 {[%clk
0:02:09.7]} 11... axb5 {[%clk 0:02:35.8]} 12. Rxa8+ {[%clk 0:02:08.1]} 12...
Bxa8 {[%clk 0:02:36.7]} 13. Qa1 {[%clk 0:02:07.5]} 13... Bb7 {[%clk 0:02:32.3]}
14. Qa2 {[%clk 0:01:55]} 14... Nxf4 {[%clk 0:02:29.1]} 15. exf4 {[%clk
0:01:53.7]} 15... Bd6 {[%clk 0:02:19.6]} 16. Ra1 {[%clk 0:01:52]} 16... O-O
{[%clk 0:02:18.5]} 17. Qb3 {[%clk 0:01:50.2]} 17... Ra8 {[%clk 0:02:07.5]} 18.
Rxa8+ {[%clk 0:01:47.7]} 18... Bxa8 {[%clk 0:02:07.5]} 19. Qa2 {[%clk
0:01:47.2]} 19... Bb7 {[%clk 0:02:06.1]} 20. Nb3 {[%clk 0:01:46.2]} 20... Qa6
{[%clk 0:01:55.5]} 21. Qxa6 {[%clk 0:01:42.9]} 21... Bxa6 {[%clk 0:01:54.8]} 22.
Na5 {[%clk 0:01:22.5]} 22... b4 {[%clk 0:01:48]} 23. cxb4 {[%clk 0:01:11.8]}
23... cxb4 {[%clk 0:01:46.7]} 24. Nc6 {[%clk 0:01:11.3]} 24... Bc4 {[%clk
0:01:36.8]} 25. Nd2 {[%clk 0:01:08]} 25... b3 {[%clk 0:01:31.8]} 26. Na5 {[%clk
0:01:00.1]} 26... Bb4 {[%clk 0:01:27.9]} 27. Naxc4 {[%clk 0:00:58.6]} 27... dxc4
{[%clk 0:01:25.6]} 28. Nxc4 {[%clk 0:00:57.6]} 28... Kf8 {[%clk 0:01:01.3]} 29.
Bc6 {[%clk 0:00:56.3]} 29... Ke7 {[%clk 0:00:51.3]} 30. Ba4 {[%clk 0:00:54.1]}
30... Nf6 {[%clk 0:00:40]} 31. Bxb3 {[%clk 0:00:52.4]} 31... Ne4 {[%clk
0:00:39.7]} 32. Kf1 {[%clk 0:00:48.2]} 32... Nd2+ {[%clk 0:00:37.7]} 33. Nxd2
{[%clk 0:00:47.6]} 33... Bxd2 {[%clk 0:00:38.3]} 34. Bc4 {[%clk 0:00:45.8]}
34... Kd6 {[%clk 0:00:35.9]} 35. Ke2 {[%clk 0:00:42.3]} 35... Bb4 {[%clk
0:00:34.9]} 36. Kd3 {[%clk 0:00:40]} 36... f6 {[%clk 0:00:31]} 37. f3 {[%clk
0:00:38.7]} 37... Be1 {[%clk 0:00:26.8]} 38. g4 {[%clk 0:00:35.7]} 38... h6
{[%clk 0:00:23.6]} 39. Ke4 {[%clk 0:00:22.6]} 39... Bd2 {[%clk 0:00:20.2]} 40.
f5 {[%clk 0:00:21.9]} 40... e5 {[%clk 0:00:19.2]} 41. dxe5+ {[%clk 0:00:21]}
41... fxe5 {[%clk 0:00:20]} 42. h3 {[%clk 0:00:16.8]} 42... Be1 {[%clk
0:00:18.3]} 43. f4 {[%clk 0:00:15.8]} 43... exf4 {[%clk 0:00:17.7]} 44. Kxf4
{[%clk 0:00:15.9]} 44... Bd2+ {[%clk 0:00:17.5]} 45. Ke4 {[%clk 0:00:15.5]}
45... Bb4 {[%clk 0:00:17.3]} 46. h4 {[%clk 0:00:13.8]} 46... Be1 {[%clk
0:00:14.9]} 47. h5 {[%clk 0:00:09.3]} 47... Bb4 {[%clk 0:00:13.7]} 48. Be6
{[%clk 0:00:09.2]} 48... Bd2 {[%clk 0:00:13.1]} 49. Kd4 {[%clk 0:00:08.6]} 49...
Bb4 {[%clk 0:00:11.9]} 50. Kc4 {[%clk 0:00:08.9]} 50... Ba5 {[%clk 0:00:11.6]}
51. b4 {[%clk 0:00:09.2]} 51... Bb6 {[%clk 0:00:11.8]} 52. Kb5 {[%clk
0:00:09.3]} 52... Kc7 {[%clk 0:00:10.4]} 53. Ka6 {[%clk 0:00:09.2]} 53... Bd4
{[%clk 0:00:09.8]} 54. b5 {[%clk 0:00:09.5]} 54... Bb6 {[%clk 0:00:09.5]} 55.
Bd5 {[%clk 0:00:08.7]} 55... Be3 {[%clk 0:00:09]} 56. Be4 {[%clk 0:00:08]} 56...
Bd4 {[%clk 0:00:08.6]} 57. Bd3 {[%clk 0:00:08.1]} 57... Be3 {[%clk 0:00:08.4]}
58. Be2 {[%clk 0:00:07.5]} 58... Bd4 {[%clk 0:00:08.3]} 59. Bf3 {[%clk
0:00:06.8]} 59... Be3 {[%clk 0:00:08.3]} 60. Ka5 {[%clk 0:00:05.9]} 60... Bb6+
{[%clk 0:00:07.9]} 61. Kb4 {[%clk 0:00:06]} 61... Kd6 {[%clk 0:00:07.7]} 62. Kc4
{[%clk 0:00:06.4]} 62... Ke5 {[%clk 0:00:06.8]} 63. Be2 {[%clk 0:00:05.7]} 63...
Kd6 {[%clk 0:00:06.6]} 64. Bd1 {[%clk 0:00:05.4]} 64... Ke5 {[%clk 0:00:06.7]}
65. Kd3 {[%clk 0:00:05.6]} 65... Kd6 {[%clk 0:00:06.5]} 66. Ke4 {[%clk
0:00:05.8]} 66... Bc5 {[%clk 0:00:06.2]} 67. Bc2 {[%clk 0:00:05.9]} 67... Bb6
{[%clk 0:00:06]} 68. Bd3 {[%clk 0:00:06.2]} 68... Bc5 {[%clk 0:00:05.5]} 69. Be2
{[%clk 0:00:06.3]} 69... Bb6 {[%clk 0:00:05]} 70. Kf4 {[%clk 0:00:06.6]} 70...
Bc5 {[%clk 0:00:04.1]} 71. g5 {[%clk 0:00:06.3]} 71... hxg5+ {[%clk 0:00:03.8]}
72. Kxg5 {[%clk 0:00:06.2]} 72... Kc7 {[%clk 0:00:03.5]} 73. Kg6 {[%clk
0:00:06.5]} 73... Bd4 {[%clk 0:00:02.8]} 74. h6 {[%clk 0:00:06.5]} 74... gxh6
{[%clk 0:00:02.7]} 75. Kxh6 {[%clk 0:00:06.7]} 75... Kd6 {[%clk 0:00:02.7]} 76.
Kg6 {[%clk 0:00:07]} 76... Ke7 {[%clk 0:00:02.6]} 77. Bd3 {[%clk 0:00:05.8]}
77... Be5 {[%clk 0:00:01.6]} 78. b6 {[%clk 0:00:05.2]} 1-0